bitfinex/quotes_ETHUSD_20250524
["timestamp","ask_amount","ask_price","bid_price","bid_amount"]
[1748089803757,17.4754569,2556.2,2556.1,0.05]
[1748089804482,17.01096268,2556.2,2556.1,0.05]
[1748089806086,17.4754569,2556.2,2556.1,0.05]
[1748089808402,5.7464569,2556.2,2556.1,0.05]
[1748089808700,16.46992169,2556.2,2556.1,1.39790298]
[1748089809089,16.46992169,2556.2,2556.1,0.05]
[1748089809276,4.27542747,2556.2,2556.1,1.39790298]
[1748089809477,16.00542747,2556.2,2556.1,1.39790298]
[1748089809902,16.00542747,2556.2,2556.1,0.05]
[1748089810104,0.36337052,2556.2,2556.1,17.53240298]
[1748089810273,0.36337052,2556.2,2556.1,26.0725306]
[1748089810480,4.27542747,2556.2,2556.1,26.0725306]
[1748089810873,3.91205695,2556.2,2556.1,8.8335]
[1748089818285,3.91205695,2556.2,2556.1,8.05]
[1748089818887,3.91205695,2556.2,2556.1,0.05]
[1748089819304,4.2748656,2556.2,2556.1,0.05]
[1748089820586,5.1042656,2556.2,2556.1,0.05]
[1748089820803,6.00588477,2556.2,2556.1,0.05]
[1748089825412,6.00106422,2556.2,2556.1,0.05]
[1748089830194,15.36166422,2556.2,2556.1,0.05]
[1748089830394,16.14936422,2556.2,2556.1,0.05]
[1748089830808,16.61374323,2556.2,2556.1,0.05]
[1748089832632,16.14936422,2556.2,2556.1,0.05]
[1748089841935,31.15536422,2556.2,2556.1,0.05]
[1748089842100,4.70518797,2555.2,2555.1,0.05]
[1748089842296,16.43818797,2555.2,2555.1,0.05]
[1748089842821,26.62818797,2555.2,2555.1,0.05]
[1748089843197,26.99099662,2555.2,2555.1,0.05]
[1748089844066,15.25799662,2555.2,2555.1,0.05]
[1748089844234,44.50483496,2555.2,2555.1,0.05]
[1748089845634,51.51083496,2555.2,2555.1,0.05]
[1748089845976,53.3210632,2555.2,2555.1,0.05]
[1748089847050,52.85873794,2555.2,2555.1,0.05]
[1748089847641,51.51083496,2555.2,2555.1,0.05]
[1748089848057,51.51583496,2555.2,2555.1,0.05]
[1748089849652,52.86373794,2555.2,2555.1,0.05]
[1748089850053,53.32580063,2555.2,2555.1,0.05]
[1748089851138,61.32580063,2555.2,2555.1,0.05]
[1748089851687,60.86373794,2555.2,2555.1,0.05]
[1748089853380,3.91512019,2554.2,2554.1,0.8172]
[1748089853755,3.91512019,2554.2,2554.1,2.16510298]
[1748089853986,3.91512019,2554.2,2554.1,2.38161328]
[1748089854359,3.91512019,2554.2,2554.1,2.16510298]
[1748089855445,3.91512019,2554.2,2554.1,0.8172]
[1748089861297,14.05512019,2554.2,2554.1,0.05]
[1748089862498,14.41638795,2554.2,2554.1,0.05]
[1748089863055,14.41638795,2554.2,2554.1,1.0453703]
[1748089863260,14.05512019,2554.2,2554.1,1.0453703]
[1748089864978,14.05512019,2554.2,2554.1,0.8278]
[1748089865502,3.91512019,2554.2,2554.1,0.8278]
[1748089870465,3.91512019,2554.2,2554.1,0.05]
[1748089871097,4.27764689,2554.2,2554.1,0.05]
[1748089872901,15.24384689,2554.2,2554.1,0.05]
[1748089873101,16.43800275,2554.2,2554.1,0.05]
[1748089877107,15.61180275,2554.2,2554.1,0.05]
[1748089877308,26.15764689,2554.2,2554.1,0.05]
[1748089878098,14.41764689,2554.2,2554.1,1.39790298]
[1748089880282,14.41764689,2554.2,2554.1,0.05]
[1748089881560,21.63464689,2554.2,2554.1,0.05]
[1748089881755,22.18464689,2554.2,2554.1,0.05]
[1748089882059,24.28042192,2554.2,2554.1,0.05]
[1748089882908,23.73042192,2554.2,2554.1,0.05]
[1748089883113,19.61842192,2554.2,2554.1,0.05]
[1748089883703,44.29942192,2554.2,2554.1,0.05]
[1748089884361,44.84942192,2554.2,2554.1,0.05]
[1748089884647,44.85042192,2554.2,2554.1,0.05]
[1748089884843,47.19942192,2554.2,2554.1,0.05]
[1748089885142,55.19942192,2554.2,2554.1,0.05]
[1748089885645,59.31142192,2554.2,2554.1,0.05]
[1748089886017,3.91665361,2553.2,2553.1,0.05]
[1748089886333,16.02018031,2553.2,2553.1,0.05]
[1748089886705,17.9368722,2553.2,2553.1,0.05]
[1748089886904,16.02018031,2553.2,2553.1,0.05]
[1748089887748,4.27918031,2553.2,2553.1,1.39790298]
[1748089887910,4.27918031,2553.2,2553.1,2.20500298]
[1748089888319,3.91665361,2553.2,2553.1,2.20500298]
[1748089890451,0.46277015,2553.7,2553.2,8.8071]
[1748089890633,3.91619345,2553.5,2553.4,8.8071]
[1748089890818,3.91619345,2553.5,2553.4,10.15500298]
[1748089893619,3.91619345,2553.5,2553.4,11.61103554]
[1748089894266,3.91619345,2553.5,2553.4,26.90403554]
[1748089899632,3.91619345,2553.5,2553.4,26.89921498]
[1748089899832,3.91619345,2553.5,2553.4,29.58913648]
[1748089900377,3.91619345,2553.5,2553.4,26.89921498]
[1748089900532,3.91665361,2553.2,2553.1,18.11493554]
[1748089900735,3.91665361,2553.2,2553.1,15.311]
[1748089900960,3.91665361,2553.2,2553.1,0.05]
[1748089901861,4.27865701,2553.2,2553.1,8.05]
[1748089902057,5.48980969,2553.2,2553.1,0.05]
[1748089906694,4.27865701,2553.2,2553.1,0.05]
[1748089907756,3.91665361,2553.2,2553.1,0.05]
[1748089909895,4.27850364,2553.2,2553.1,0.05]
[1748089911622,4.27850364,2553.2,2553.1,8.8675]
[1748089911904,0.36185003,2553.2,2553.1,8.8675]
[1748089912077,4.27850364,2553.2,2553.1,10.03464355]
[1748089912278,3.91665361,2553.2,2553.1,10.03464355]
[1748089913871,3.91619345,2553.5,2553.2,0.8175]
[1748089914206,3.91612137,2553.6,2553.5,11.62143554]
[1748089915716,3.91612137,2553.6,2553.5,10.16549195]
[1748089915883,3.91612137,2553.6,2553.5,10.87587875]
[1748089921146,3.91612137,2553.6,2553.5,24.60899195]
[1748089922843,3.91599121,2553.7,2553.5,25.36699195]
[1748089923053,4.27764606,2553.8,2553.6,8.0]
[1748089923054,4.27771608,2553.8,2553.6,8.0]
[1748089923346,3.91581746,2553.8,2553.7,10.10599195]
[1748089924217,3.91560385,2553.9,2553.7,11.4539839]
[1748089924543,3.91560385,2553.9,2553.8,13.36748229]
[1748089924699,3.91560385,2553.9,2553.8,12.77749034]
[1748089926383,3.91560385,2553.9,2553.8,9.34799195]
[1748089926982,3.91560385,2553.9,2553.6,1.34799195]
[1748089926983,3.91588675,2553.7,2553.6,1.34799195]
[1748089930186,3.91650021,2553.3,2553.2,0.758]
[1748089930328,3.91650021,2553.3,2553.2,25.33699195]
[1748089930962,3.91567431,2553.9,2553.3,8.0]
[1748089931165,3.91630562,2553.5,2553.3,8.0]
[1748089932049,3.91634683,2553.4,2553.3,8.0]
[1748089932435,3.91634683,2553.4,2553.3,9.34799195]
[1748089934785,3.91585227,2553.8,2553.4,0.785]
[1748089934990,3.91585227,2553.8,2553.7,1.34799195]
[1748089935577,3.91585227,2553.8,2553.7,2.13299195]
[1748089935743,11.741,2554.1,2553.9,0.785]
[1748089935744,3.91530899,2554.1,2553.9,0.785]
[1748089935943,3.91527348,2554.1,2554.0,10.6959839]
[1748089938031,3.91527348,2554.1,2554.0,11.84408229]
[1748089938234,3.9151774,2554.2,2554.1,8.0]
[1748089938579,3.91527348,2554.1,2554.0,3.84408229]
[1748089940071,3.91519477,2554.2,2554.0,3.84408229]
[1748089940640,3.91519477,2554.2,2554.1,0.7877]
[1748089941183,3.91428231,2554.8,2554.1,1.25087823]
[1748089941473,3.91481365,2554.4,2554.3,8.0]
[1748089941860,3.91454889,2554.6,2554.4,0.7748]
[1748089942038,3.9146604,2554.5,2554.4,0.7748]
[1748089942241,3.91456823,2554.6,2554.5,8.0]
[1748089942443,3.91456823,2554.6,2554.4,3.17518]
[1748089942639,0.36243868,2554.7,2554.5,1.34799195]
[1748089942957,0.46277015,2555.0,2554.5,1.34799195]
[1748089942958,3.91418316,2554.9,2554.6,0.7748]
[1748089943267,4.37673704,2555.0,2554.8,9.34799195]
[1748089943449,0.46277015,2555.0,2554.9,1.34799195]
[1748089943642,0.61702687,2555.2,2555.0,8.7748]
[1748089943842,0.61702687,2555.2,2555.1,2.16192397]
[1748089944048,3.91340975,2555.4,2555.1,2.12279195]
[1748089944242,3.9132436,2555.5,2555.2,24.2402792]
[1748089944485,0.36221982,2555.8,2555.5,8.0]
[1748089944684,3.91266922,2555.8,2555.7,1.34799195]
[1748089944869,3.91266922,2555.8,2555.7,24.57599195]
[1748089945187,3.91266922,2555.8,2555.7,9.34799195]
[1748089945485,3.91266922,2555.8,2555.7,24.57599195]
[1748089945800,3.91266922,2555.8,2555.7,26.02759192]
[1748089946560,3.91266922,2555.8,2555.7,28.63035111]
[1748089947987,3.91266922,2555.8,2555.7,8.0]
[1748089948688,3.91297542,2555.6,2555.3,15.225]
[1748089949049,3.91314723,2555.5,2555.4,8.0]
[1748089950390,3.91343482,2555.3,2555.2,18.02359192]
[1748089950690,3.91343482,2555.3,2555.2,26.02359192]
[1748089951055,3.91343482,2555.3,2555.2,10.79959192]
[1748089951697,15.64866922,2555.8,2555.3,8.7955]
[1748089951698,0.7682,2555.8,2555.3,8.7955]
[1748089951866,3.96256937,2555.9,2555.8,8.0]
[1748089952199,3.96256937,2555.9,2555.8,23.224]
[1748089953254,3.96256937,2555.9,2555.8,8.0]
[1748089958057,3.96256937,2555.9,2555.2,4.49999309]
[1748089958058,3.91328167,2555.4,2555.2,3.94999309]
[1748089958280,11.734,2555.6,2555.2,8.0]
[1748089958455,11.734,2555.6,2555.3,0.55]
[1748089958660,3.91306467,2555.6,2555.4,0.7696]
[1748089958902,0.05,2555.9,2555.4,0.7696]
[1748089959102,3.91310402,2555.6,2555.4,0.7696]
[1748089959904,3.91297542,2555.6,2555.4,0.7696]
[1748089960200,3.91284471,2555.7,2555.4,0.7696]
[1748089960701,3.91308666,2555.6,2555.4,0.7696]
[1748089960897,3.91282818,2555.7,2555.4,0.7696]
[1748089961061,3.91312854,2555.5,2555.4,2.81986]
[1748089961262,3.91312854,2555.5,2555.4,8.0]
[1748089961462,3.91312854,2555.5,2555.4,23.197]
[1748089961887,3.91312854,2555.5,2555.4,8.0]
[1748089963307,3.913135,2555.5,2555.4,8.0]
[1748089964597,3.91287442,2555.7,2555.4,8.0]
[1748089964776,3.91312854,2555.5,2555.4,10.40104]
[1748089967374,3.91312854,2555.5,2555.4,2.40104]
[1748089967569,3.91343482,2555.3,2555.2,8.8144]
[1748089967813,3.91343482,2555.3,2555.2,24.0104]
[1748089968404,0.05,2555.9,2555.2,24.0104]
[1748089968605,3.91315775,2555.5,2555.2,24.0104]
[1748089970021,0.05,2555.9,2555.3,0.55]
[1748089970194,3.91312854,2555.5,2555.4,3.2053]
[1748089973231,3.91312854,2555.5,2555.4,8.0]
[1748089973388,3.91312854,2555.5,2555.4,23.196]
[1748089974924,3.91312854,2555.5,2555.4,8.0]
[1748089975179,3.91312854,2555.5,2555.4,23.195]
[1748089975640,4.2762839,2555.5,2555.4,23.195]
[1748089976586,4.2762839,2555.5,2555.4,26.39517]
[1748089977897,3.91312854,2555.5,2555.4,26.39517]
[1748089978097,3.91287945,2555.7,2555.4,26.39517]
[1748089978098,3.91301345,2555.6,2555.5,8.0]
[1748089980313,3.91312854,2555.5,2555.4,2.40257]
[1748089980517,3.91312854,2555.5,2555.4,25.59757]
[1748089980760,3.91312854,2555.5,2555.4,10.40257]
[1748089981051,3.91358797,2555.2,2555.1,16.904]
[1748089981572,3.91358797,2555.2,2555.1,24.904]
[1748089982053,3.91358797,2555.2,2555.1,25.454]
[1748089982054,0.36326067,2555.2,2555.1,25.454]
[1748089982423,0.36326067,2555.2,2555.1,30.14754114]
[1748089982941,3.91297542,2555.6,2555.3,0.55]
[1748089983146,3.91312854,2555.5,2555.4,0.855]
[1748089983517,3.91286089,2555.7,2555.4,0.855]
[1748089983824,3.91286089,2555.7,2555.5,0.7798]
[1748089983825,3.91290191,2555.7,2555.5,0.7798]
[1748089984045,3.91290191,2555.7,2555.6,23.196]
[1748089984958,3.91273121,2555.8,2555.7,8.0]
[1748089985117,3.91273121,2555.8,2555.7,10.39758]
[1748089986320,4.27625485,2555.8,2555.7,10.39758]
[1748089987466,4.27625485,2555.8,2555.7,23.196]
[1748089992217,0.36352364,2555.8,2555.7,24.5258]
[1748089993365,0.05,2555.9,2555.8,8.55]
[1748089995544,3.96251613,2555.9,2555.8,23.724]
[1748089995857,0.05,2555.9,2555.8,27.67399309]
[1748089996762,0.05,2555.9,2555.8,28.45379309]
[1748089997081,0.05,2555.9,2555.8,32.36646231]
[1748090003399,0.05,2555.9,2555.8,35.30306259]
[1748090004206,0.05,2555.9,2555.8,35.79184816]
[1748090004561,0.05,2556.9,2556.8,0.76]
[1748090004889,0.05,2556.9,2556.8,23.931]
[1748090005092,0.05,2556.9,2556.8,25.99871632]
[1748090005904,3.96098595,2556.9,2556.8,25.99871632]
[1748090006065,3.96098595,2556.9,2556.8,23.171]
[1748090006267,3.96098595,2556.9,2556.8,8.0]
[1748090006475,3.96098595,2556.9,2556.8,23.171]
[1748090008487,0.05,2556.9,2556.8,23.171]
[1748090008677,3.96098595,2556.9,2556.8,27.12099309]
[1748090009289,0.05,2556.9,2556.8,27.12099309]
[1748090009477,0.05,2556.9,2556.8,13.28579309]
[1748090009676,0.05,2556.9,2556.8,40.18179309]
[1748090009908,0.05,2556.9,2556.8,44.09293201]
[1748090011392,0.05,2556.9,2556.8,45.09831786]
[1748090011887,0.05,2556.9,2556.8,44.60953229]
[1748090013627,0.05,2556.9,2556.8,44.08893201]
[1748090017267,0.05,2556.9,2556.8,4.49999309]
[1748090017423,3.96098595,2556.9,2556.8,15.165]
[1748090017826,0.05,2556.9,2556.8,23.165]
[1748090018116,0.05,2556.9,2556.8,15.165]
[1748090018316,0.05,2556.9,2556.8,23.165]
[1748090018517,0.05,2556.9,2556.8,27.11499309]
[1748090019818,3.91083661,2557.0,2556.9,8.0]
[1748090020127,3.91074751,2557.1,2556.9,8.0]
[1748090022019,3.910833,2557.0,2556.9,8.0]
[1748090022319,3.9105663,2557.2,2556.9,8.0]
[1748090022320,3.91075815,2557.1,2556.9,8.0]
[1748090022520,3.91058752,2557.2,2556.9,8.78770162]
[1748090022948,3.91074765,2557.1,2556.9,8.78770162]
[1748090024435,3.91074765,2557.1,2556.8,3.94999309]
[1748090024764,3.91007399,2557.5,2557.1,1.3453]
[1748090025864,3.910098,2557.5,2557.1,1.3453]
[1748090026564,3.91010033,2557.5,2557.1,1.3453]
[1748090026761,3.90999141,2557.6,2557.3,0.55]
[1748090026937,3.9098447,2557.7,2557.5,8.0]
[1748090027133,3.9098447,2557.7,2557.5,9.66020377]
[1748090028865,3.90968894,2557.8,2557.5,9.66020377]
[1748090029663,0.05,2557.9,2557.6,0.55]
[1748090030226,3.90962174,2557.8,2557.6,0.55]
[1748090030428,3.90991554,2557.6,2557.5,1.66020377]
[1748090030627,3.90991554,2557.6,2557.5,23.144]
[1748090031164,3.9098278,2557.7,2557.5,23.144]
[1748090031524,3.90991554,2557.6,2557.5,23.144]
[1748090033664,3.90991554,2557.6,2557.5,23.143]
[1748090034397,3.90983829,2557.7,2557.5,25.4573]
[1748090034575,3.90983829,2557.7,2557.6,15.143]
[1748090035454,3.90960982,2557.8,2557.7,8.0]
[1748090037390,3.95951717,2557.9,2557.7,8.0]
[1748090037601,3.90960982,2557.8,2557.7,8.0]
[1748090037929,3.90960982,2557.8,2557.7,10.54573]
[1748090038904,0.05,2557.9,2557.7,10.54573]
[1748090039212,3.90960982,2557.8,2557.7,10.54573]
[1748090040081,3.90960982,2557.8,2557.7,23.142]
[1748090040673,3.90960982,2557.8,2557.5,8.55]
[1748090040674,3.90985598,2557.7,2557.5,8.55]
[1748090040877,3.90985598,2557.7,2557.6,23.142]
[1748090041106,3.90967042,2557.8,2557.7,8.0]
[1748090042601,3.95949363,2557.9,2557.8,8.0]
[1748090044043,3.95949363,2557.9,2557.2,0.7812]
[1748090044327,3.95949363,2557.9,2557.6,23.142]
[1748090044328,3.90976267,2557.7,2557.6,23.142]
[1748090044821,3.90489519,2557.7,2557.6,23.142]
[1748090045923,4.72769519,2557.7,2557.6,23.142]
[1748090046913,0.8228,2557.7,2557.6,23.142]
[1748090047108,3.90965044,2557.8,2557.7,8.0]
[1748090047326,3.90960982,2557.8,2557.7,8.0]
[1748090049241,3.90976267,2557.7,2557.6,1.34422543]
[1748090049535,3.90976267,2557.7,2557.6,24.48622543]
[1748090051323,4.66486267,2557.7,2557.6,23.142]
[1748090051527,3.90976267,2557.7,2557.6,24.48622543]
[1748090051845,3.90976267,2557.7,2557.6,26.93484797]
[1748090053239,3.90967083,2557.8,2557.7,8.0]
[1748090055039,4.27333352,2557.8,2557.7,8.0]
[1748090057438,0.36366269,2557.8,2557.4,8.0]
[1748090057735,3.90960982,2557.8,2557.7,23.123]
[1748090058835,4.27357419,2557.8,2557.7,23.123]
[1748090059202,4.27357419,2557.8,2557.7,8.0]
[1748090066347,3.90960982,2557.8,2557.7,8.0]
[1748090068511,0.05,2557.9,2557.7,8.0]
[1748090068853,0.05,2557.9,2557.8,11.79104797]
[1748090070059,3.95945697,2557.9,2557.8,11.79104797]
[1748090072251,0.05,2557.9,2557.8,11.79104797]
[1748090072861,0.05,2557.9,2557.5,0.8107]
[1748090073159,3.91020803,2557.5,2557.3,32.002]
[1748090073356,3.91020803,2557.5,2557.4,1.34422543]
[1748090073542,3.91020803,2557.5,2557.4,9.34422543]
[1748090073948,0.8702,2557.9,2557.4,9.34422543]
[1748090074256,0.05,2557.9,2557.7,1.34422543]
[1748090074414,3.90960982,2557.8,2557.7,1.34422543]
[1748090074843,3.95957287,2557.9,2557.7,1.34422543]
[1748090075049,3.95945697,2557.9,2557.8,23.123]
[1748090075217,3.95945697,2557.9,2557.8,24.76570162]
[1748090075758,4.3230466,2557.9,2557.8,24.76570162]
[1748090076177,0.41358963,2557.9,2557.8,24.76570162]
[1748090076821,0.05,2557.9,2557.8,24.76570162]
[1748090077566,3.95945697,2557.9,2557.8,24.76570162]
[1748090078955,0.05,2557.9,2557.8,24.76570162]
[1748090082623,0.05,2557.9,2557.8,25.31570162]
[1748090083675,0.05,2557.9,2557.8,26.10480162]
[1748090085190,3.95945697,2557.9,2557.8,9.64270162]
[1748090085360,3.95945697,2557.9,2557.8,24.44822543]
[1748090086631,0.05,2557.9,2557.8,24.44822543]
[1748090086978,3.95945697,2557.9,2557.8,24.44822543]
[1748090087274,0.05,2557.9,2557.8,24.44822543]
[1748090087442,0.05,2557.9,2557.8,28.06504797]
[1748090095982,3.95945697,2557.9,2557.8,9.34422543]
[1748090096143,3.95945697,2557.9,2557.8,24.44822543]
[1748090096530,0.05,2557.9,2557.8,24.44822543]
[1748090097433,0.05,2557.9,2557.8,24.99822543]
[1748090100778,0.05,2557.9,2557.8,9.89422543]
[1748090100946,0.05,2557.9,2557.8,26.37763887]
[1748090103057,0.05,2557.9,2557.8,9.38041344]
[1748090103058,3.95945697,2557.9,2557.8,9.38041344]
[1748090103284,3.95945697,2557.9,2557.8,8.0]
[1748090103458,3.95945697,2557.9,2557.8,23.103]
[1748090104357,3.95945697,2557.9,2557.8,24.44722543]
[1748090105894,3.95945697,2557.9,2557.5,16.877]
[1748090105895,3.90991554,2557.6,2557.5,16.877]
[1748090106099,3.90991554,2557.6,2557.5,33.32422543]
[1748090106287,3.90991554,2557.6,2557.5,44.92853485]
[1748090106917,0.05,2557.9,2557.5,44.92853485]
[1748090106918,3.95959933,2557.9,2557.6,8.0]
[1748090107236,3.95959933,2557.9,2557.7,1.34422543]
[1748090107584,3.90973599,2557.8,2557.7,1.34422543]
[1748090107920,4.66766267,2557.7,2557.6,23.103]
[1748090108531,4.66766267,2557.7,2557.6,8.0]
[1748090108738,4.66766267,2557.7,2557.6,23.103]
[1748090110639,4.66766267,2557.7,2557.6,23.104]
[1748090114830,4.66766267,2557.7,2557.6,8.0]
[1748090115026,6.70250254,2557.7,2557.6,8.0]
[1748090115689,7.06554479,2557.7,2557.6,8.0]
[1748090116809,7.06554479,2557.7,2557.3,1.34422543]
[1748090116810,3.910833,2557.0,2556.9,18.38339416]
[1748090117338,3.910833,2557.0,2556.9,1.95516873]
[1748090117515,4.711233,2557.0,2556.9,1.95516873]
[1748090118103,5.07427525,2557.0,2556.9,1.95516873]
[1748090118899,7.14497314,2557.0,2556.9,1.95516873]
[1748090119607,6.78193089,2557.0,2556.9,1.95516873]
[1748090121981,3.91098595,2556.9,2556.8,8.0]
[1748090123958,3.91098595,2556.9,2556.7,16.879]
[1748090123959,0.46424375,2557.5,2556.7,2.16582543]
[1748090124159,4.37431217,2557.5,2557.4,1.34422543]
[1748090124744,3.91006842,2557.5,2557.4,1.34422543]
[1748090124945,3.91022131,2557.4,2557.3,8.0]
[1748090125330,3.91052713,2557.2,2557.1,23.089]
[1748090126516,3.91052713,2557.2,2557.1,21.43658889]
[1748090127261,3.91037422,2557.3,2557.2,8.0]
[1748090127455,3.91037422,2557.3,2557.2,9.34422543]
[1748090128862,12.5068,2557.6,2556.8,0.8216]
[1748090129022,3.91097261,2557.0,2556.9,23.088]
[1748090130120,3.91097261,2557.0,2556.9,24.43222543]
[1748090131034,3.91097261,2557.0,2556.8,12.5456]
[1748090131035,3.91098595,2556.9,2556.7,16.43222543]
[1748090131246,3.91113892,2556.8,2556.7,16.43222543]
[1748090131445,3.91113892,2556.8,2556.7,24.43222543]
[1748090133263,3.91113892,2556.8,2556.7,23.088]
[1748090135963,3.91113892,2556.8,2556.7,23.089]
[1748090138386,12.5144,2557.6,2556.8,8.0]
[1748090138554,3.91037422,2557.3,2557.2,1.34422543]
[1748090138874,3.91037422,2557.3,2557.2,24.43322543]
[1748090140250,3.91037422,2557.3,2557.2,23.089]
[1748090141271,4.70587422,2557.3,2557.2,8.0]
[1748090141482,5.87894062,2557.3,2557.2,8.0]
[1748090141772,17.60394062,2557.3,2557.2,8.0]
[1748090142338,16.80844062,2557.3,2557.2,8.0]
[1748090142977,15.63537422,2557.3,2557.2,8.0]
[1748090144482,3.91068006,2557.1,2557.0,23.089]
[1748090145169,4.70988006,2557.1,2557.0,8.0]
[1748090146366,3.91129189,2556.7,2556.6,1.34422543]
[1748090146572,3.91129189,2556.7,2556.6,16.41622543]
[1748090147105,3.91129189,2556.7,2556.6,24.41622543]
[1748090149505,3.91129189,2556.7,2556.6,23.072]
[1748090150069,3.91129189,2556.7,2556.6,23.073]
[1748090150796,4.69353749,2556.7,2556.6,23.073]
[1748090150995,3.91129189,2556.7,2556.6,23.073]
[1748090159122,3.91129189,2556.7,2556.6,23.623]
[1748090160221,3.91129189,2556.7,2556.6,23.073]
[1748090161098,3.91125014,2556.8,2556.7,8.55]
[1748090161310,3.91125014,2556.8,2556.7,9.89422543]
[1748090162627,0.7829,2557.1,2556.7,9.89422543]
[1748090162829,0.46424375,2557.4,2557.0,1.34422543]
[1748090162991,3.91054255,2557.2,2557.1,24.4317]
[1748090163195,3.91054255,2557.2,2557.1,25.77592543]
[1748090163727,3.91113892,2556.8,2556.7,15.074]
[1748090164095,3.91113892,2556.8,2556.7,23.074]
[1748090164413,4.69953892,2556.8,2556.7,23.074]
[1748090164809,3.91159788,2556.5,2556.4,15.074]
[1748090165007,3.91159788,2556.5,2556.4,23.074]
[1748090165211,3.91190392,2556.3,2556.2,18.23022543]
[1748090165404,3.91190392,2556.3,2556.2,41.30422543]
[1748090165609,3.91190392,2556.3,2556.2,41.85422543]
[1748090170651,3.91190392,2556.3,2556.2,26.78022543]
[1748090170930,3.91190392,2556.3,2556.2,41.85522543]
[1748090172202,3.91190392,2556.3,2556.2,26.78022543]
[1748090172406,3.91190392,2556.3,2556.2,41.85622543]
[1748090175854,3.91190392,2556.3,2556.2,41.84022543]
[1748090177451,0.7884,2556.8,2556.2,33.84022543]
[1748090177609,11.728,2556.8,2556.7,1.34422543]
[1748090177942,15.63917193,2556.8,2556.7,1.34422543]
[1748090178361,16.00223545,2556.8,2556.7,1.34422543]
[1748090178508,18.11498333,2556.8,2556.7,1.34422543]
[1748090179649,17.75191981,2556.8,2556.7,1.34422543]
[1748090180956,3.91144488,2556.6,2556.5,0.55]
[1748090181165,3.91159788,2556.5,2556.3,8.0]
[1748090181316,3.91175089,2556.4,2556.3,8.0]
[1748090181510,3.91175089,2556.4,2556.3,23.06]
[1748090185373,3.91175089,2556.4,2556.3,8.0]
[1748090188444,15.63975089,2556.4,2556.3,8.0]
[1748090189780,3.91190392,2556.3,2556.2,33.29022543]
[1748090189985,3.91190392,2556.3,2556.2,41.29022543]
[1748090190362,3.91190392,2556.3,2556.2,24.40422543]
[1748090191041,4.27497508,2556.3,2556.2,24.40422543]
[1748090191246,0.36307116,2556.3,2556.2,24.95422543]
[1748090191477,4.27497508,2556.3,2556.2,24.95422543]
[1748090192056,3.91190392,2556.3,2556.2,24.95422543]
[1748090203301,15.63976694,2556.4,2556.3,8.55]
[1748090203302,3.91175089,2556.4,2556.3,8.55]
[1748090204201,4.37520052,2557.0,2556.5,0.55]
[1748090204511,4.37522058,2557.0,2556.9,1.89422543]
[1748090204711,4.37522058,2557.0,2556.9,24.95522543]
[1748090205288,4.27429509,2557.0,2556.9,24.95522543]
[1748090206506,3.91097683,2557.0,2556.9,24.95522543]
[1748090213987,0.61702687,2557.8,2557.2,0.55]
[1748090214321,15.63606842,2557.5,2557.4,1.34422543]
[1748090214608,3.91006842,2557.5,2557.4,24.38322543]
[1748090215021,3.91006842,2557.5,2557.4,24.93322543]
[1748090215179,4.74286842,2557.5,2557.4,8.0]
[1748090215382,3.91039473,2557.3,2556.9,16.38322543]
[1748090215581,3.91068006,2557.1,2557.0,8.0]
[1748090216984,3.91113892,2556.8,2556.7,1.34422543]
[1748090217195,3.91113892,2556.8,2556.7,24.93222543]
[1748090218280,15.63613892,2556.8,2556.7,23.038]
[1748090219564,3.91106818,2556.9,2556.8,8.0]
[1748090219854,3.91097972,2557.0,2556.9,0.55]
[1748090220407,3.91097972,2557.0,2556.8,23.588]
[1748090220408,3.91098595,2556.9,2556.8,23.588]
[1748090220750,3.91098595,2556.9,2556.8,24.93222543]
[1748090221547,3.91072512,2557.1,2556.9,8.0]
[1748090221548,15.63592696,2557.0,2556.9,8.0]
[1748090221742,15.63592696,2557.0,2556.9,9.34422543]
[1748090222357,3.91092696,2557.0,2556.9,9.34422543]
[1748090222529,3.91092696,2557.0,2556.9,9.89422543]
[1748090223283,10.80702687,2557.9,2557.0,0.55]
[1748090223284,0.46424375,2557.8,2557.0,0.55]
[1748090223419,3.91006842,2557.5,2557.4,1.34422543]
[1748090223618,3.91006842,2557.5,2557.4,8.0]
[1748090225368,3.91024239,2557.4,2557.3,8.0]
[1748090225667,3.91037422,2557.3,2557.2,1.89422543]
[1748090225904,3.91037422,2557.3,2557.2,16.93222543]
[1748090226106,3.91025644,2557.4,2557.3,8.0]
[1748090226258,3.91008949,2557.5,2557.3,8.0]
[1748090226462,3.91008949,2557.5,2557.4,1.34422543]
[1748090226993,3.91008949,2557.5,2557.4,1.89422543]
[1748090227225,0.7941,2557.8,2557.4,4.38744797]
[1748090227396,0.7941,2557.8,2557.6,1.34422543]
[1748090227397,3.90976263,2557.8,2557.6,1.34422543]
[1748090227603,3.90976267,2557.7,2557.6,1.89422543]
[1748090227803,3.90976267,2557.7,2557.6,16.93122543]
[1748090228735,3.90960982,2557.8,2557.7,0.55]
[1748090234140,3.90960982,2557.8,2557.7,1.376]
[1748090234625,3.95953657,2557.9,2557.7,9.376]
[1748090234831,3.95953657,2557.9,2557.8,1.34422543]
[1748090236329,0.05,2557.9,2557.8,1.89422543]
[1748090236631,3.95945697,2557.9,2557.8,1.89422543]
[1748090242138,0.05,2557.9,2557.8,1.89422543]
[1748090242327,0.05,2557.9,2557.8,4.46994797]
[1748090242528,0.05,2557.9,2557.8,12.46994797]
[1748090243621,0.05,2557.9,2557.8,13.29054797]
[1748090246945,0.05,2557.9,2557.8,17.20015779]
[1748090252656,0.05,2557.9,2557.8,13.29054797]
[1748090252819,3.95945697,2557.9,2557.8,24.35522543]
[1748090253025,0.05,2557.9,2557.8,24.90522543]
[1748090254368,0.05,2557.9,2557.8,0.55]
[1748090254518,3.95945697,2557.9,2557.8,16.35522543]
[1748090255035,3.95945697,2557.9,2557.8,24.90522543]
[1748090257787,3.95945697,2557.9,2557.8,9.89422543]
[1748090257939,3.95945697,2557.9,2557.8,24.90522543]
[1748090260974,0.05,2557.9,2557.8,24.90522543]
[1748090261478,0.05,2557.9,2557.8,32.12765779]